fUST/lending_fUST_20251109
["ID","MTS","AMOUNT","RATE_DAILY","PERIOD"]
[393470200,1762699629815,500.0,0.00037082,60]
[393470201,1762699630075,500.0,0.00037082,60]
[393470202,1762699637841,500.0,0.00037082,60]
[393470203,1762699638081,557.50102556,0.00037082,60]
[393470204,1762699639307,215.50789374,0.00037082,30]
[393470205,1762699639452,500.0,0.00037082,60]
[393470206,1762699639851,500.0,0.00037082,60]
[393470207,1762699639965,500.0,0.00037082,60]
[393470208,1762699640225,500.0,0.00037082,60]
[393470209,1762699640458,648.40209951,0.00037082,60]
[393470210,1762699642315,500.0,0.00037082,60]
[393470211,1762699642557,500.0,0.00037082,60]
[393470212,1762699642811,500.0,0.00037082,60]
[393470213,1762699643053,500.0,0.00037082,60]
[393470214,1762699643298,634.22102298,0.00037082,60]
[393470215,1762699649248,500.0,0.00037082,60]
[393470216,1762699649516,500.0,0.00037082,60]
[393470217,1762699649759,500.0,0.00037082,60]
[393470218,1762699650056,500.0,0.00037082,60]
[393470219,1762699650246,157.02909928,0.00037082,60]
[393470220,1762699652685,500.0,0.00037082,60]
[393470221,1762699652934,259.4295086,0.00037082,60]
[393470222,1762699654736,500.0,0.00037082,60]
[393470223,1762699655064,500.0,0.00037082,60]
[393470224,1762699655342,500.0,0.00037082,60]
[393470225,1762699655583,500.0,0.00037082,60]
[393470226,1762699655803,500.0,0.00037082,60]
[393470227,1762699656062,500.0,0.00037082,60]
[393470228,1762699656239,500.0,0.00037082,60]
[393470229,1762699656408,500.0,0.00037082,60]
[393470230,1762699656546,500.0,0.00037082,60]
[393470231,1762699656641,500.0,0.00037082,60]
[393470232,1762699656774,542.61375089,0.00037082,60]
[393470233,1762699656865,500.0,0.00037082,60]
[393470234,1762699657098,500.0,0.00037082,60]
[393470235,1762699657287,500.0,0.00037082,60]
[393470236,1762699657349,500.0,0.00037082,60]
[393470237,1762699657520,500.0,0.00037082,60]
[393470238,1762699657580,500.0,0.00037082,60]
[393470239,1762699657763,542.73562753,0.00037082,60]
[393470240,1762699657823,500.0,0.00037082,60]
[393470241,1762699658047,500.0,0.00037082,60]
[393470242,1762699658279,500.0,0.00037082,60]
[393470243,1762699658505,500.0,0.00037082,120]
[393470244,1762699658592,500.0,0.00037082,60]
[393470245,1762699658758,500.0,0.00037082,120]
[393470246,1762699658838,500.0,0.00037082,60]
[393470247,1762699658998,500.0,0.00037082,120]
[393470248,1762699659096,500.0,0.00037082,60]
[393470249,1762699659271,500.0,0.00037082,120]
[393470250,1762699659331,328.4982425,0.00037082,60]
[393470251,1762699659526,500.0,0.00037082,120]
[393470252,1762699659774,288.25433026,0.00037082,120]
[393470253,1762699661142,500.0,0.00037082,60]
[393470254,1762699661195,405.88618915,0.00037082,60]
[393470255,1762699661336,500.0,0.00037082,60]
[393470256,1762699661576,500.0,0.00037082,60]
[393470257,1762699661818,530.30406632,0.00037082,60]
[393470258,1762699666852,500.0,0.00037082,60]
[393470259,1762699667089,500.0,0.00037082,60]
[393470260,1762699667343,500.0,0.00037082,60]
[393470261,1762699667597,350.34194135,0.00037082,60]
[393470262,1762699676562,500.0,0.00037082,60]
[393470263,1762699676833,564.50482332,0.00037082,60]
[393470264,1762699681213,500.0,0.00037082,60]
[393470265,1762699681532,500.0,0.00037082,60]
[393470266,1762699681763,500.0,0.00037082,60]
[393470267,1762699682011,599.4112466,0.00037082,60]
[393470268,1762699686867,500.0,0.00037082,60]
[393470269,1762699687105,500.0,0.00037082,60]
[393470270,1762699687338,500.0,0.00037082,60]
[393470271,1762699687521,500.0,0.00037082,60]
[393470272,1762699687576,311.97281047,0.00037082,60]
[393470273,1762699687786,500.0,0.00037082,60]
[393470274,1762699688056,540.42149252,0.00037082,60]
[393470275,1762699691775,500.0,0.00037082,21]
[393470276,1762699691963,500.0,0.00037082,21]
[393470277,1762699692227,500.0,0.00037082,21]
[393470278,1762699692494,178.1376492,0.00037082,21]
[393470279,1762699696326,500.0,0.00037082,60]
[393470280,1762699696562,500.0,0.00037082,60]
[393470281,1762699696822,500.0,0.00037082,60]
[393470282,1762699697049,500.0,0.00037082,60]
[393470283,1762699700489,500.0,0.00037082,60]
[393470284,1762699700730,500.0,0.00037082,60]
[393470285,1762699701103,500.0,0.00037082,60]
[393470286,1762699701220,507.25785426,0.00037082,60]
[393470287,1762699703174,1118.97267802,0.00037082,20]
[393470288,1762699704031,500.0,0.00037082,60]
[393470289,1762699704264,500.0,0.00037082,60]
[393470290,1762699704498,587.04340731,0.00037082,60]
[393470291,1762699706277,500.0,0.00037082,60]
[393470292,1762699706517,500.0,0.00037082,60]
[393470293,1762699706635,164.03528961,0.00037082,20]
[393470294,1762699708879,500.0,0.00037082,60]
[393470296,1762699709159,500.0,0.00037082,60]
[393470297,1762699709422,500.0,0.00037082,60]
[393470298,1762699709669,204.87299469,0.00037082,60]
[393470299,1762699710724,500.0,0.00037082,60]
[393470300,1762699711099,500.0,0.00037082,60]
[393470301,1762699711356,500.0,0.00037082,60]
[393470302,1762699711523,500.0,0.00037082,60]
[393470303,1762699711586,507.48973381,0.00037082,60]
[393470304,1762699711763,500.0,0.00037082,60]
[393470305,1762699712333,500.0,0.00037082,60]
[393470306,1762699712643,500.0,0.00037082,60]
[393470307,1762699712693,500.0,0.00037082,60]
[393470308,1762699712741,183.07638434,0.00037082,60]
[393470309,1762699714641,500.0,0.00037082,60]
[393470310,1762699714873,500.0,0.00037082,60]
[393470311,1762699715098,545.29107838,0.00037082,60]
[393470312,1762699720330,500.0,0.00037082,60]
[393470313,1762699720563,500.0,0.00037082,60]
[393470314,1762699721185,500.0,0.00037082,60]
[393470315,1762699721437,551.71575961,0.00037082,60]
[393470316,1762699723180,500.0,0.00037082,60]
[393470317,1762699723415,500.0,0.00037082,60]
[393470318,1762699723656,355.12303137,0.00037082,60]
[393470319,1762699727938,318.20905656,0.00037082,60]
[393470320,1762699732057,1454.0,0.00017501,2]
[393470321,1762699734832,500.0,0.00037082,60]
[393470322,1762699735064,500.0,0.00037082,60]
[393470323,1762699735254,500.0,0.00037082,60]
[393470324,1762699735317,564.77294588,0.00037082,60]
[393470325,1762699735863,531.34622006,0.00037082,60]
[393470326,1762699741937,500.0,0.00037082,60]
[393470327,1762699742199,500.0,0.00037082,60]
[393470328,1762699742437,500.0,0.00037082,60]
[393470329,1762699742680,636.40020207,0.00037082,60]
[393470330,1762699749249,500.0,0.00037082,60]
[393470331,1762699749500,500.0,0.00037082,60]
[393470332,1762699749738,606.051386,0.00037082,60]
[393470333,1762699752942,500.0,0.00037082,60]
[393470334,1762699753197,500.0,0.00037082,60]
[393470335,1762699753434,500.0,0.00037082,60]
[393470336,1762699753706,209.91213689,0.00037082,60]
[393470337,1762699753763,500.0,0.00037082,60]
[393470338,1762699753978,500.0,0.00037082,60]
[393470339,1762699754216,500.0,0.00037082,60]
[393470340,1762699754452,500.0,0.00037082,60]
[393470341,1762699754688,348.39730926,0.00037082,60]
[393470342,1762699756462,500.0,0.00037082,60]
[393470343,1762699756700,500.0,0.00037082,60]
[393470344,1762699757003,528.57397409,0.00037082,60]
[393470345,1762699759954,500.0,0.00037082,60]
[393470346,1762699760250,500.0,0.00037082,60]
[393470347,1762699760510,500.0,0.00037082,60]
[393470348,1762699761101,500.0,0.00037082,60]
[393470349,1762699761394,304.91382676,0.00037082,60]
[393470350,1762699763136,500.0,0.00037082,60]
[393470351,1762699763310,500.0,0.00037082,60]
[393470352,1762699763560,500.0,0.00037082,60]
[393470353,1762699763819,601.15428155,0.00037082,60]
[393470354,1762699765675,500.0,0.00037082,60]
[393470355,1762699765926,500.0,0.00037082,60]
[393470356,1762699766175,500.0,0.00037082,60]
[393470357,1762699766420,637.29099941,0.00037082,60]
[393470358,1762699768247,500.0,0.00037082,60]
[393470359,1762699768520,500.0,0.00037082,60]
[393470360,1762699768757,500.0,0.00037082,60]
[393470361,1762699769118,213.2962241,0.00037082,60]
[393470362,1762699770854,500.0,0.00037082,60]
[393470363,1762699771097,500.0,0.00037082,60]
[393470364,1762699771339,530.65985425,0.00037082,60]
[393470365,1762699775364,552.70659247,0.00037082,60]
[393470366,1762699776317,500.0,0.00037082,60]
[393470367,1762699776566,500.0,0.00037082,60]
[393470368,1762699776674,500.0,0.00037082,60]
[393470369,1762699776792,543.51440514,0.00037082,60]
[393470370,1762699776902,500.0,0.00037082,60]
[393470371,1762699777020,500.0,0.00037082,60]
[393470372,1762699777160,424.50946866,0.00037082,60]
[393470373,1762699777251,500.0,0.00037082,60]
[393470374,1762699777525,500.0,0.00037082,60]
[393470375,1762699777757,500.0,0.00037082,60]
[393470376,1762699777982,241.0788655,0.00037082,60]
[393470377,1762699778735,500.0,0.00037082,60]
[393470378,1762699778983,577.31739926,0.00037082,60]
[393470379,1762699781590,500.0,0.00037082,60]
[393470380,1762699781835,500.0,0.00037082,60]
[393470381,1762699781911,500.0,0.00037082,60]
[393470382,1762699782079,500.0,0.00037082,60]
[393470383,1762699782154,500.0,0.00037082,60]
[393470384,1762699782331,500.0,0.00037082,60]
[393470385,1762699782403,561.879916,0.00037082,60]
[393470386,1762699782581,500.0,0.00037082,60]
[393470387,1762699782818,500.0,0.00037082,60]
[393470388,1762699783064,500.0,0.00037082,60]
[393470389,1762699783303,500.0,0.00037082,60]
[393470390,1762699783544,228.82769878,0.00037082,60]
[393470391,1762699784023,500.0,0.00037082,60]
[393470392,1762699784184,500.0,0.00037082,60]
[393470393,1762699784437,500.0,0.00037082,60]
[393470394,1762699784649,637.98711997,0.00037082,60]
[393470395,1762699785370,500.0,0.00037082,60]
[393470396,1762699785620,500.0,0.00037082,60]
[393470397,1762699785855,538.54299709,0.00037082,60]
[393470398,1762699787846,500.0,0.00037082,60]
[393470399,1762699788092,500.0,0.00037082,60]
[393470400,1762699788341,500.0,0.00037082,60]
[393470401,1762699788456,500.0,0.00037082,60]
[393470402,1762699788580,500.0,0.00037082,60]
[393470403,1762699788700,500.0,0.00037082,60]
[393470404,1762699788840,274.89797856,0.00037082,60]
[393470405,1762699788940,500.0,0.00037082,60]
[393470406,1762699789354,500.0,0.00037082,60]
[393470407,1762699789592,500.0,0.00037082,60]
[393470408,1762699790094,583.5114,0.00037082,60]
[393470409,1762699791430,500.0,0.00037082,60]
[393470410,1762699791669,500.0,0.00037082,60]
[393470411,1762699791896,500.0,0.00037082,60]
[393470412,1762699792057,500.0,0.00037082,60]
[393470413,1762699792131,500.0,0.00037082,60]
[393470414,1762699792288,500.0,0.00037082,60]
[393470415,1762699792370,500.0,0.00037082,60]
[393470416,1762699792528,500.0,0.00037082,60]
[393470417,1762699792590,500.0,0.00037082,60]
[393470418,1762699792642,500.0,0.00037082,60]
[393470419,1762699792776,500.0,0.00037082,60]
[393470420,1762699792834,500.0,0.00037082,60]
[393470421,1762699792886,500.0,0.00037082,60]
[393470422,1762699793027,164.23864786,0.00037082,60]
[393470423,1762699793251,535.01342144,0.00037082,60]
[393470424,1762699793313,500.0,0.00037082,60]
[393470425,1762699793377,610.22986619,0.00037082,60]
[393470426,1762699794990,500.0,0.00037082,60]
[393470427,1762699795221,500.0,0.00037082,60]
[393470428,1762699795420,500.0,0.00037082,60]
[393470429,1762699795469,500.0,0.00037082,60]
[393470430,1762699795671,178.79049907,0.00037082,60]
[393470431,1762699795721,500.0,0.00037082,60]
[393470432,1762699795946,500.0,0.00037082,60]
[393470433,1762699796203,275.93958065,0.00037082,60]
[393470434,1762699801691,500.0,0.00037082,60]
[393470435,1762699801930,500.0,0.00037082,60]
[393470436,1762699802171,500.0,0.00037082,60]
[393470437,1762699802541,597.36040643,0.00037082,60]
[393470438,1762699803333,500.0,0.00037082,60]
[393470439,1762699803931,500.0,0.00037082,60]
[393470440,1762699804250,584.92915048,0.00037082,60]
[393470441,1762699807432,1741.18284755,0.00037081,60]
[393470442,1762699808402,500.0,0.00037081,60]
[393470443,1762699808644,500.0,0.00037081,60]
[393470444,1762699808888,500.0,0.00037081,60]
[393470445,1762699809135,500.0,0.00037081,60]
[393470446,1762699809384,184.89961152,0.00037081,60]
[393470447,1762699809442,151.0,0.00037081,60]
[393470448,1762699810259,500.0,0.00037081,60]
[393470449,1762699810492,500.0,0.00037081,60]
[393470450,1762699810578,500.0,0.00037081,60]
[393470451,1762699810746,556.22978399,0.00037081,60]
[393470452,1762699810829,446.59549671,0.00037081,60]
[393470453,1762699814219,500.0,0.00037081,60]
[393470454,1762699814420,500.0,0.00037081,60]
[393470455,1762699814490,500.0,0.00037081,60]
[393470456,1762699814579,423.09560039,0.00037081,60]
[393470457,1762699814702,533.85254723,0.00037081,60]
[393470458,1762699816865,504.49281392,0.00037081,60]
[393470459,1762699818543,500.0,0.00037081,60]
[393470460,1762699818774,500.0,0.00037081,60]
[393470461,1762699819022,539.20180186,0.00037081,60]
[393470462,1762699819274,500.0,0.00037081,60]
[393470463,1762699819532,500.0,0.00037081,60]
[393470464,1762699819769,557.41867743,0.00037081,60]
[393470465,1762699820697,500.0,0.00037081,60]
[393470466,1762699820971,500.0,0.00037081,60]
[393470467,1762699821112,202.25190196,0.00031,120]
[393470468,1762699821228,532.47555854,0.00037081,60]
[393470469,1762699822204,500.0,0.00037081,60]
[393470470,1762699822326,500.0,0.00037081,60]
[393470471,1762699822566,538.77170062,0.00037081,60]
[393470472,1762699823042,500.0,0.00037081,60]
[393470473,1762699823269,500.0,0.00037081,60]
[393470474,1762699823514,523.85046083,0.00037081,60]
[393470475,1762699826023,500.0,0.00037081,60]
[393470476,1762699826264,500.0,0.00037081,60]
[393470477,1762699826492,500.0,0.00037081,60]
[393470478,1762699826555,500.0,0.00037081,60]
[393470479,1762699826723,185.17804584,0.00037081,60]
[393470480,1762699826783,500.0,0.00037081,60]
[393470481,1762699826990,564.45228275,0.00037081,60]
[393470482,1762699828237,200.0,0.000328,120]
[393470483,1762699831192,186.93031327,0.00031,120]
[393470507,1762699832422,186.93031327,0.000319,120]
[393470532,1762699832652,-278.71284974,0.00018614,2]
[393470533,1762699832664,-201.7254418,0.00018614,2]
[393470537,1762699832690,-150.02040962,0.00018614,2]
[393470546,1762699832771,-551.25414858,0.00018614,2]
[393470548,1762699832781,-157.21272931,0.00018714,2]
[393470550,1762699832793,-150.0,0.00018767,2]
[393470552,1762699832803,-484.83911808,0.00019058,2]
[393470554,1762699832812,-150.0,0.000196,2]
[393470556,1762699832821,-252.656492,0.00019644,2]
[393470557,1762699832830,-484.83911808,0.00020611,2]
[393470560,1762699832840,-177.0,0.00020767,2]
[393470563,1762699832849,-3143.96300015,0.00021816,2]
[393470565,1762699832859,-707.50920038,0.00021816,2]
[393470567,1762699832868,-1200.0,0.00021904,2]
[393470569,1762699832879,-300.0,0.00021905,2]
[393470571,1762699832890,-300.0,0.00021905,2]
[393470573,1762699832899,-300.0,0.00021905,2]
[393470575,1762699832908,-444.71,0.00021906,10]
[393470577,1762699832917,-761.51,0.00021906,10]
[393470579,1762699832927,-241.92859754,0.00021915,2]
[393470581,1762699832936,-50000.0,0.00021916,2]
[393470583,1762699832946,-1200.0,0.00021916,2]
[393470585,1762699832955,-500.0,0.00021917,2]
[393470587,1762699832965,-152.6220112,0.00021918,7]
[393470589,1762699832974,-508.57098806,0.00021973,2]
[393470591,1762699832983,-412.11065633,0.00021973,2]
[393470593,1762699832993,-500.41926643,0.00021973,2]
[393470595,1762699833003,-500.43470923,0.00021973,2]
[393470597,1762699833012,-501.9409669,0.00021973,2]
[393470599,1762699833022,-501.1549955,0.00021973,2]
[393470601,1762699833032,-500.0,0.00021973,2]
[393470603,1762699833042,-500.0,0.00021973,2]
[393470605,1762699833051,-500.0,0.00021973,2]
[393470607,1762699833061,-500.0,0.00021973,2]
[393470608,1762699833070,-500.0,0.00021973,2]
[393470610,1762699833080,-500.0,0.00021973,2]
[393470612,1762699833090,-500.0,0.00021973,2]
[393470614,1762699833100,-500.62247055,0.00021973,2]
[393470616,1762699833110,-503.36032577,0.00021973,2]
[393470618,1762699833120,-500.0,0.00021973,2]
[393470620,1762699833130,-500.0,0.00021973,2]
[393470622,1762699833141,-579.05357123,0.00021973,2]
[393470624,1762699833151,-484.83911808,0.00022163,2]
[393470626,1762699833161,-500.0,0.00022191,2]
[393470628,1762699833171,-500.0,0.00022465,2]
[393470630,1762699833181,-345.96805809,0.00022521,2]
[393470632,1762699833191,-1004.43111576,0.00022521,2]
[393470634,1762699833201,-1000.0,0.00022521,2]
[393470636,1762699833211,-1000.0,0.00022521,2]
[393470638,1762699833220,-1000.0,0.00022521,2]
[393470640,1762699833230,-513.56763513,0.00022521,2]
[393470641,1762699833240,-1000.0,0.00022521,2]
[393470643,1762699833250,-707.50920035,0.00022561,2]
[393470645,1762699833261,-500.0,0.00022739,2]
[393470647,1762699833270,-204.0,0.00022767,2]
[393470649,1762699833280,-500.0,0.00023013,2]
[393470651,1762699833290,-500.0,0.00023014,2]
[393470653,1762699833299,-639.1421548,0.00023033,30]
[393470654,1762699833308,-1500.0,0.00023068,2]
[393470655,1762699833319,-1500.0,0.00023068,2]
[393470656,1762699833329,-1500.0,0.00023068,2]
[393470658,1762699833339,-362.98690802,0.00023287,2]
[393470660,1762699833348,-707.50920035,0.00023306,2]
[393470662,1762699833358,-500.0,0.0002351,2]
[393470664,1762699833367,-500.0,0.0002351,2]
[393470666,1762699833376,-500.0,0.0002351,2]
[393470667,1762699833386,-536.13127727,0.0002351,2]
[393470668,1762699833397,-500.0,0.00023511,2]
[393470669,1762699833407,-500.0,0.00023511,2]
[393470670,1762699833417,-500.0,0.00023511,2]
[393470671,1762699833427,-150.0,0.00023513,2]
[393470672,1762699833437,-500.0,0.00023573,2]
[393470673,1762699833447,-501.17308663,0.00023573,2]
[393470674,1762699833456,-500.0,0.00023573,2]
[393470675,1762699833466,-500.0,0.00023573,2]
[393470676,1762699833476,-627.70313445,0.00023573,2]
[393470677,1762699833487,-501.92453917,0.00023573,2]
[393470678,1762699833496,-500.0,0.00023573,2]
[393470679,1762699833505,-367.60025948,0.00023573,2]
[393470680,1762699833516,-500.0,0.00023573,2]
[393470681,1762699833529,-500.47549417,0.00023573,2]
[393470682,1762699833539,-500.0,0.00023573,2]
[393470683,1762699833549,-500.0,0.00023573,2]
[393470684,1762699833559,-500.0,0.00023573,2]
[393470685,1762699833568,-500.0,0.00023613,2]
[393470686,1762699833578,-6334.16,0.00023613,2]
[393470687,1762699833679,-6334.16,0.00023613,2]
[393470688,1762699833694,-500.0,0.00023613,2]
[393470689,1762699833704,-500.0,0.00023613,2]
[393470690,1762699833714,-2000.0,0.00023616,2]
[393470691,1762699833724,-1724.69842444,0.00023616,2]
[393470692,1762699833734,-1821.02387417,0.00023616,2]
[393470693,1762699833743,-225.44,0.00023621,2]
[393470694,1762699833753,-1207.89446176,0.00023642,2]
[393470695,1762699833763,-500.0,0.00023673,2]
[393470696,1762699833773,-501.72220391,0.00023673,2]
[393470697,1762699833782,-500.0,0.00023673,2]
[393470698,1762699833794,-501.40456731,0.00023673,2]
[393470699,1762699833804,-6334.16,0.00023713,2]
[393470700,1762699833813,-6334.16,0.00023713,2]
[393470701,1762699833823,-6334.16,0.00023713,2]
[393470702,1762699833833,-6334.16,0.00023713,2]
[393470703,1762699833843,-500.0,0.00023713,2]
[393470704,1762699833853,-384.42707083,0.00023713,2]
[393470705,1762699833864,-6334.16,0.00023715,2]
[393470706,1762699833874,-4172.3880331,0.00023716,2]
[393470707,1762699833884,-2097.0360043,0.00023716,2]
[393470708,1762699833897,-484.83911808,0.00023716,2]
[393470709,1762699833907,-1650.0,0.00023764,2]
[393470710,1762699833917,-500.0,0.00023773,2]
[393470711,1762699833927,-420.0,0.00023806,2]
[393470712,1762699833937,-469.0,0.00023817,2]
[393470713,1762699833947,-160.0,0.00023863,2]
[393470714,1762699833957,-150.0,0.000239,2]
[393470716,1762699833969,-1200.0,0.00023916,2]
[393470718,1762699833980,-707.50920035,0.00024051,2]
[393470720,1762699833990,-151.0,0.00024059,7]
[393470721,1762699833999,-262.151215,0.00024059,7]
[393470722,1762699834008,-1000.0,0.00024121,2]
[393470723,1762699834017,-976.24380117,0.00024121,2]
[393470725,1762699834027,-1000.0,0.00024121,2]
[393470726,1762699834038,-1000.0,0.00024121,2]
[393470727,1762699834048,-1000.0,0.00024121,2]
[393470728,1762699834059,-1088.59035741,0.00024121,2]
[393470729,1762699834069,-1000.0,0.00024121,2]
[393470730,1762699834080,-645.52451791,0.00024121,2]
[393470731,1762699834090,-252.430964,0.00024121,2]
[393470732,1762699834100,-151.0,0.00024121,7]
[393470733,1762699834110,-151.0,0.00024121,7]
[393470734,1762699834119,-6334.16,0.00024141,2]
[393470735,1762699834130,-8754.14524512,0.00024142,2]
[393470736,1762699834140,-2500.0,0.00024164,2]
[393470737,1762699834154,-502.04118686,0.00024221,2]
[393470738,1762699834164,-206.88391362,0.00024221,2]
[393470739,1762699834173,-330.99422104,0.00024321,2]
[393470740,1762699834183,-168.0,0.00024345,2]
[393470741,1762699834192,-260.0,0.0002441,2]
[393470742,1762699834202,-168.0,0.00024466,2]
[393470743,1762699834211,-168.0,0.00024613,2]
[393470744,1762699834221,-1000.0,0.00024668,2]
[393470745,1762699834230,-1500.0,0.00024668,2]
[393470746,1762699834240,-502.28352117,0.00024668,2]
[393470747,1762699834249,-1382.44340923,0.00024668,2]
[393470748,1762699834259,-1207.89446176,0.00024685,2]
[393470749,1762699834268,-3000.0,0.00024712,2]
[393470750,1762699834278,-168.0,0.00024762,7]
[393470751,1762699834288,-231.0,0.00024767,2]
[393470752,1762699834298,-6334.16,0.00024795,2]
[393470753,1762699834308,-8677.36835789,0.00024796,2]
[393470754,1762699834318,-707.50920035,0.00024796,2]
[393470755,1762699834327,-501.65409155,0.00024873,2]
[393470756,1762699834337,-257.7860095,0.00024873,2]
[393470757,1762699834347,-500.0,0.00024873,2]
[393470758,1762699834356,-500.0,0.00024873,2]
[393470759,1762699834366,-500.0,0.00024873,2]
[393470760,1762699834375,-500.0,0.00024873,2]
[393470761,1762699834383,-500.0,0.00024873,2]
[393470762,1762699834397,-500.0,0.00024873,2]
[393470763,1762699834407,-500.0,0.00024873,2]
[393470764,1762699834416,-500.0,0.00024873,2]
[393470765,1762699834426,-500.0,0.00024873,2]
[393470766,1762699834436,-500.0,0.00024873,2]
[393470767,1762699834446,-500.0,0.00024873,2]
[393470768,1762699834456,-500.0,0.00024873,2]
[393470769,1762699834465,-500.86839596,0.00024873,2]
[393470770,1762699834476,-501.13774842,0.00024873,2]
[393470771,1762699834486,-500.0,0.00024873,2]
[393470772,1762699834496,-500.0,0.00024873,2]
[393470773,1762699834506,-501.4583667,0.00024873,2]
[393470774,1762699834516,-500.0,0.00024873,2]
[393470775,1762699834526,-500.51428832,0.00024873,2]
[393470776,1762699834536,-6334.16,0.00024877,2]
[393470777,1762699834545,-151.0,0.00024881,7]
[393470778,1762699834555,-151.0,0.00024881,7]
[393470779,1762699834566,-235.83312649,0.00024881,7]
[393470780,1762699834575,-6334.16,0.00024894,2]
[393470781,1762699834585,-6334.16,0.00024894,2]
[393470782,1762699834594,-151.0,0.00024895,7]
[393470783,1762699834603,-6334.16,0.00024895,2]
[393470784,1762699834612,-6334.16,0.00024895,2]
[393470785,1762699834622,-6334.16,0.00024895,2]
[393470786,1762699834631,-6334.16,0.00024895,2]
[393470787,1762699834640,-6334.16,0.00024895,2]
[393470788,1762699834652,-6334.16,0.00024895,2]
[393470789,1762699834661,-6334.16,0.00024895,2]
[393470790,1762699834670,-151.0,0.00024895,7]
[393470791,1762699834679,-124349.82245794,0.00024896,2]
[393470792,1762699834689,-151.0,0.00024896,7]
[393470793,1762699834699,-151.0,0.00024896,7]
[393470794,1762699834708,-6334.16,0.00024898,2]
[393470795,1762699834717,-6334.16,0.00024898,2]
[393470796,1762699834727,-6334.16,0.00024898,2]
[393470797,1762699834737,-6334.16,0.00024898,2]
[393470798,1762699834746,-6334.28103466,0.00024898,2]
[393470799,1762699834756,-3143.96300012,0.00024899,2]
[393470800,1762699834766,-246.98650192,0.000249,2]
[393470801,1762699834775,-199.53957224,0.000249,2]
[393470802,1762699834785,-151.46147094,0.000249,2]
[393470803,1762699834800,-444.57570345,0.000249,2]
[393470804,1762699834810,-272.63064768,0.000249,2]
[393470805,1762699834820,-209.07701788,0.000249,2]
[393470806,1762699834831,-790.35680613,0.000249,2]
[393470807,1762699834840,-406.33908386,0.000249,2]
[393470808,1762699834850,-358.81205879,0.000249,2]
[393470809,1762699834860,-63287.5899179,0.000249,2]
[393470810,1762699835114,461.52175439,0.00031,120]
[393470811,1762699835396,461.52175439,0.000319,120]
[393470812,1762699835572,500.0,0.00037081,60]
[393470813,1762699835670,500.0,0.00037081,60]
[393470814,1762699835755,537.4730767,0.00037081,60]
[393470815,1762699836071,620.79180873,0.00037081,60]
[393470843,1762699838517,-404.96765326,0.00021915,2]
[393470845,1762699838527,-212.30994209,0.00021915,2]
[393470847,1762699838537,-500.0,0.00021915,2]
[393470849,1762699838546,-500.0,0.00021915,2]
[393470851,1762699838556,-500.0,0.00021915,2]